fUST/lending_fUST_20250828
["ID","MTS","AMOUNT","RATE_DAILY","PERIOD"]
[381894765,1756393845039,-480.0,0.00019726,2]
[381894766,1756393845048,-480.0,0.00019726,2]
[381894767,1756393845058,-480.0,0.00019726,2]
[381894768,1756393845067,-480.0,0.00019726,2]
[381894769,1756393845076,-480.0,0.00019726,2]
[381894770,1756393845086,-480.0,0.00019726,2]
[381894771,1756393845095,-480.0,0.00019726,2]
[381894772,1756393845105,-480.0,0.00019726,2]
[381894773,1756393845115,-480.0,0.00019726,2]
[381894774,1756393845124,-480.0,0.00019726,2]
[381894775,1756393845134,-480.0,0.00019726,2]
[381894776,1756393845143,-480.0,0.00019726,2]
[381894777,1756393845152,-480.0,0.00019726,2]
[381894778,1756393845161,-480.0,0.00019726,2]
[381894779,1756393845170,-480.0,0.00019726,2]
[381894780,1756393845179,-480.0,0.00019726,2]
[381894781,1756393845191,-480.0,0.00019726,2]
[381894782,1756393845201,-270.92978184,0.00019726,2]
[381894783,1756393845210,-480.0,0.00019726,2]
[381894784,1756393845219,-480.0,0.00019726,2]
[381894785,1756393845229,-480.0,0.00019726,2]
[381894786,1756393845239,-480.0,0.00019726,2]
[381894787,1756393845248,-480.0,0.00019726,2]
[381894788,1756393845258,-480.0,0.00019726,2]
[381894789,1756393845267,-480.0,0.00019726,2]
[381894790,1756393845277,-480.0,0.00019726,2]
[381894791,1756393845286,-480.0,0.00019726,2]
[381894792,1756393845296,-480.0,0.00019726,2]
[381894793,1756393845305,-480.0,0.00019726,2]
[381894794,1756393845315,-480.0,0.00019726,2]
[381894795,1756393845324,-480.0,0.00019726,2]
[381894796,1756393845333,-480.0,0.00019726,2]
[381894797,1756393845342,-480.0,0.00019726,2]
[381894798,1756393845351,-655.08,0.00019726,2]
[381894799,1756393845361,-480.0,0.00019726,2]
[381894800,1756393845370,-480.0,0.00019726,2]
[381894801,1756393845381,-480.0,0.00019726,2]
[381894802,1756393845390,-500.43,0.00019726,2]
[381894803,1756393845399,-480.0,0.00019726,2]
[381894804,1756393845409,-480.0,0.00019726,2]
[381894805,1756393845418,-480.0,0.00019726,2]
[381894806,1756393845428,-480.0,0.00019726,2]
[381894807,1756393845437,-480.0,0.00019726,2]
[381894808,1756393845448,-480.0,0.00019726,2]
[381894809,1756393845457,-480.0,0.00019726,2]
[381894810,1756393845467,-480.0,0.00019726,2]
[381894811,1756393845476,-1713.27,0.00019726,2]
[381894812,1756393845486,-1200.18,0.00019726,2]
[381894813,1756393845496,-2725.94,0.00019726,2]
[381894814,1756393845505,-480.0,0.00019726,2]
[381894815,1756393845514,-102.13762533,0.00019726,2]
[381894816,1756393845966,-116.48583234,0.00019068,2]
[381894817,1756393846102,-1766.34723019,0.00019068,2]
[381894818,1756393846111,-480.0,0.00019178,2]
[381894819,1756393846121,-250.0,0.00019306,2]
[381894820,1756393846130,-377.86237467,0.00019726,2]
[381894821,1756393846141,-480.0,0.00019726,2]
[381894822,1756393846151,-1111.61,0.00019726,2]
[381894823,1756393846160,-480.0,0.00019726,2]
[381894824,1756393846208,-1533.37,0.00019726,2]
[381894825,1756393846218,-480.0,0.00019726,2]
[381894826,1756393846227,-1325.25,0.00019726,2]
[381894827,1756393846237,-773.48,0.00019726,2]
[381894828,1756393846246,-480.0,0.00019726,2]
[381894829,1756393846255,-404.47626799,0.00019726,2]
[381894839,1756393849270,-75.52373201,0.00019726,2]
[381894840,1756393849281,-480.0,0.00019726,2]
[381894841,1756393849291,-381.19103189,0.00019726,2]
[381894842,1756393849301,-514.41098005,0.00019726,2]
[381894843,1756393849312,-480.0,0.00019726,2]
[381894844,1756393849322,-480.0,0.00019726,2]
[381894845,1756393849332,-480.0,0.00019726,2]
[381894846,1756393849342,-480.0,0.00019726,2]
[381894847,1756393849352,-480.0,0.00019726,2]
[381894848,1756393849362,-480.0,0.00019726,2]
[381894849,1756393849372,-490.13,0.00019726,2]
[381894850,1756393849383,-480.0,0.00019726,2]
[381894851,1756393849393,-480.0,0.00019726,2]
[381894852,1756393849403,-631.97,0.00019726,2]
[381894853,1756393849413,-812.8,0.00019726,2]
[381894854,1756393849424,-520.91,0.00019726,2]
[381894855,1756393849435,-480.0,0.00019726,2]
[381894856,1756393849446,-480.0,0.00019726,2]
[381894857,1756393849456,-480.0,0.00019726,2]
[381894858,1756393849466,-480.0,0.00019726,2]
[381894859,1756393849477,-480.0,0.00019726,2]
[381894860,1756393849487,-480.0,0.00019726,2]
[381894861,1756393849497,-480.0,0.00019726,2]
[381894862,1756393849507,-530.12,0.00019726,2]
[381894863,1756393849517,-747.1,0.00019726,2]
[381894864,1756393849527,-480.0,0.00019726,2]
[381894865,1756393849537,-480.0,0.00019726,2]
[381894866,1756393849547,-480.0,0.00019726,2]
[381894867,1756393849557,-686.73,0.00019726,2]
[381894868,1756393849567,-480.0,0.00019726,2]
[381894869,1756393849577,-480.0,0.00019726,2]
[381894870,1756393849587,-935.2,0.00019726,2]
[381894871,1756393849597,-480.0,0.00019726,2]
[381894872,1756393849608,-480.0,0.00019726,2]
[381894873,1756393849618,-480.0,0.00019726,2]
[381894874,1756393849629,-480.0,0.00019726,2]
[381894875,1756393849638,-480.0,0.00019726,2]
[381894876,1756393849649,-1660.25,0.00019726,2]
[381894877,1756393849659,-480.0,0.00019726,2]
[381894878,1756393849669,-480.0,0.00019726,2]
[381894879,1756393849679,-1448.48,0.00019726,2]
[381894880,1756393849690,-480.0,0.00019726,2]
[381894881,1756393849701,-480.0,0.00019726,2]
[381894882,1756393849711,-168.4505527,0.00019726,2]
[381894883,1756393849721,-480.0,0.00019726,2]
[381894884,1756393849731,-1080.95,0.00019726,2]
[381894885,1756393849743,-480.0,0.00019726,2]
[381894886,1756393849753,-480.0,0.00019726,2]
[381894887,1756393849764,-799.0,0.00019726,2]
[381894888,1756393849774,-1045.11,0.00019726,2]
[381894889,1756393849786,-480.0,0.00019726,2]
[381894890,1756393849796,-480.0,0.00019726,2]
[381894891,1756393849806,-1434.42,0.00019726,2]
[381894892,1756393849818,-480.0,0.00019726,2]
[381894893,1756393849828,-480.0,0.00019726,2]
[381894894,1756393849838,-480.0,0.00019726,2]
[381894895,1756393849848,-480.0,0.00019726,2]
[381894896,1756393849858,-480.0,0.00019726,2]
[381894897,1756393849868,-480.0,0.00019726,2]
[381894898,1756393849878,-480.0,0.00019726,2]
[381894899,1756393849888,-480.0,0.00019726,2]
[381894900,1756393849898,-557.84,0.00019726,2]
[381894901,1756393849908,-480.0,0.00019726,2]
[381894902,1756393849918,-467.57908722,0.00019726,2]
[381894903,1756393849928,-480.0,0.00019726,2]
[381894904,1756393849938,-480.0,0.00019726,2]
[381894905,1756393849948,-480.0,0.00019726,2]
[381894906,1756393849958,-684.16,0.00019726,2]
[381894907,1756393849968,-893.1,0.00019726,2]
[381894908,1756393849978,-1695.03,0.00019726,2]
[381894909,1756393849987,-480.0,0.00019726,2]
[381894910,1756393849997,-480.0,0.00019726,2]
[381894911,1756393850007,-879.57,0.00019726,2]
[381894912,1756393850017,-480.0,0.00019726,2]
[381894913,1756393850028,-480.0,0.00019726,2]
[381894914,1756393850038,-1193.73,0.00019726,2]
[381894915,1756393850048,-525.07364585,0.00019763,2]
[381894916,1756393850057,-500.0,0.00019773,2]
[381894917,1756393850067,-500.0,0.00019773,2]
[381894918,1756393850077,-500.0,0.00019773,2]
[381894919,1756393850087,-500.0,0.00019773,2]
[381894920,1756393850096,-500.0,0.00019773,2]
[381894921,1756393850106,-500.0,0.00019773,2]
[381894922,1756393850116,-500.0,0.00019773,2]
[381894923,1756393850128,-12710.44222334,0.00019793,2]
[381894924,1756393850138,-160.0,0.00019793,2]
[381894925,1756393850148,-160.0,0.00019793,2]
[381894926,1756393850166,-529.67291817,0.00019793,2]
[381894927,1756393850179,-425.52029335,0.00019793,2]
[381894928,1756393850190,-160.0,0.00019793,2]
[381894929,1756393850201,-232.64478309,0.00019793,2]
[381894930,1756393850211,-216.18903889,0.00019793,2]
[381894931,1756393850222,-160.0,0.00019793,2]
[381894932,1756393850233,-160.0,0.00019793,2]
[381894933,1756393850243,-217.27834477,0.00019793,2]
[381894934,1756393850254,-417.15472785,0.00019793,2]
[381894935,1756393850264,-845.47023312,0.00019793,2]
[381894936,1756393850275,-160.0,0.00019793,2]
[381894937,1756393850285,-160.0,0.00019793,2]
[381894938,1756393850296,-608.819325,0.00019863,2]
[381894939,1756393850306,-6000.0,0.00019899,2]
[381894940,1756393850317,-11187.62826477,0.000199,2]
[381894941,1756393850329,-199.9,0.0001999,2]
[381894942,1756393850340,-885.09446053,0.0002,2]
[381894943,1756393850351,-24727.03770549,0.0002,7]
[381894944,1756393850366,-1020.55924771,0.0002,7]
[381894945,1756393850747,-480.0,0.00019178,2]
[381894946,1756393850758,-255.04964314,0.00019925,2]
[381894948,1756393941039,-374.65611712,0.00017581,2]
[381894949,1756393944277,-300.0,0.00017581,2]
[381894950,1756393946591,-224.3214838,0.00017581,2]
[381894951,1756393948779,-301.67416869,0.00017581,2]
[381894952,1756393948827,214.87139995,0.000273,120]
[381894953,1756393951534,-22.40706222,0.00017581,2]
[381894954,1756393951749,356.00710517,0.00017464,2]
[381894955,1756393952962,-204.82746532,0.00017464,2]
[381894956,1756393954513,-216.48548214,0.00017464,2]
[381894957,1756393959049,-221.88966131,0.00017464,2]
[381894958,1756393962120,-0.79028606,0.00017464,2]
[381894960,1756394003919,262.666172,0.00013699,2]
[381894962,1756394055524,-326.46806716,0.00017502,2]
[381894963,1756394057770,-329.18736648,0.00017502,2]
[381894964,1756394061390,-290.876747,0.00017502,2]
[381894965,1756394067650,-287.43387345,0.00017502,2]
[381894966,1756394070449,-230.25978769,0.00017502,2]
[381894967,1756394072848,-162.85703326,0.00017502,2]
[381894968,1756394254500,-210.88347082,0.00017327,2]
[381894969,1756394257188,-159.80922609,0.00017327,2]
[381894970,1756394262291,-185.67179556,0.00017327,2]
[381894971,1756394264625,-437.14441397,0.00017327,2]
[381894972,1756394266925,-162.49542098,0.00017327,2]
[381894973,1756394271733,-240.45324846,0.00017327,2]
[381894974,1756394273927,-151.16803761,0.00017327,2]
[381894976,1756394288286,-240.53584913,0.00017327,2]
[381894977,1756394289872,-177.01210145,0.00017327,2]
[381894978,1756394293619,-248.17671881,0.00017327,2]
[381894979,1756394296749,-285.82026568,0.00017327,2]
[381894980,1756394298350,-194.16201245,0.00017327,2]
[381894981,1756394301848,-216.93645427,0.00017327,2]
[381894982,1756394303536,-264.00677888,0.00017327,2]
[381894983,1756394307471,-240.37800455,0.00017327,2]
[381894984,1756394311249,-174.02912009,0.00017327,2]
[381894985,1756394313996,-191.348148,0.00017327,2]
[381894986,1756394318098,-231.53083892,0.00017327,2]
[381894987,1756394320269,-395.72246316,0.00017327,2]
[381894988,1756394322431,-309.42919034,0.00017327,2]
[381894989,1756394327352,-283.28644078,0.00017327,2]
[381894991,1756394522154,267.481975,0.00016594,2]
[381894992,1756394541315,917.36456321,0.000167,2]
[381894993,1756394541341,4082.63543679,0.000167,2]
[381894994,1756394565750,5000.0,0.000167,2]
[381894995,1756394566398,-199.040283,0.00016721,2]
[381894997,1756394592092,-168.94994048,0.00017322,2]
[381894998,1756394593886,-357.26940984,0.00017322,2]
[381894999,1756394598185,-160.97979663,0.00017322,2]
[381895000,1756394600252,-170.070442,0.00017322,2]
[381895001,1756394601957,-289.42879766,0.00017322,2]
[381895002,1756394603667,-215.33420831,0.00017322,2]
[381895003,1756394606509,-317.21845871,0.00017322,2]
[381895004,1756394608039,-255.34055646,0.00017322,2]
[381895005,1756394610294,-208.93462475,0.00017322,2]
[381895006,1756394612470,-296.41184731,0.00017322,2]
[381895008,1756394771321,917.37456321,0.00016548,2]
[381895009,1756394771343,3342.36825639,0.00016548,2]
[381895013,1756394958155,-176.3666946,0.00017147,2]
[381895014,1756394997812,-158.73558834,0.00017048,2]
[381895015,1756395010565,5000.0,0.000167,2]
[381895016,1756395017154,627.3544818,0.00016277,2]
[381895017,1756395023474,1030.28726181,0.000167,2]
[381895018,1756395023497,3969.71273819,0.000167,2]
[381895072,1756395031979,-1582.6684932,0.00017032,2]
[381895073,1756395031989,-169.26903636,0.00017047,2]
[381895074,1756395031999,-2073.10034149,0.00017048,2]
[381895075,1756395032008,-300.0,0.00017147,2]
[381895076,1756395032018,-23790.47965795,0.00017148,2]
[381895088,1756395037806,-3776.29171562,0.00017148,2]
[381895089,1756395037817,-545.89180486,0.00017148,2]
[381895090,1756395037830,-5237.34244591,0.00017148,2]
[381895091,1756395037841,-359.1962722,0.00017148,2]
[381895092,1756395037857,-2758.84676101,0.00017148,2]
[381895093,1756395038035,-3956.90607804,0.00017148,2]
[381895094,1756395038046,-500.0,0.00017667,2]
[381895095,1756395038056,-500.0,0.00017667,2]
[381895096,1756395038065,-1340.24299152,0.00017749,2]
[381895097,1756395038075,-500.0,0.000179,2]
[381895098,1756395038085,-305.62,0.00018005,21]
[381895099,1756395038095,-500.0,0.00018034,2]
[381895100,1756395038104,-300.0,0.00018034,2]
[381895101,1756395038113,-300.0,0.00018034,2]
[381895102,1756395038123,-300.0,0.00018034,2]
[381895103,1756395038132,-300.0,0.00018034,2]
[381895104,1756395038142,-300.0,0.00018034,2]
[381895105,1756395038151,-300.0,0.00018034,2]
[381895106,1756395038161,-300.0,0.00018034,2]
[381895108,1756395038171,-300.0,0.00018034,2]
[381895109,1756395038181,-300.0,0.00018034,2]
[381895110,1756395038192,-300.0,0.00018034,2]
[381895111,1756395038202,-300.0,0.00018034,2]
[381895112,1756395038212,-300.0,0.00018034,2]
[381895113,1756395038221,-300.0,0.00018034,2]
[381895114,1756395038231,-300.0,0.00018034,2]
[381895115,1756395038240,-300.0,0.00018034,2]
[381895116,1756395038250,-600.0,0.00018034,2]
[381895117,1756395038259,-220.0,0.00018125,26]
[381895118,1756395038268,-500.0,0.00018215,2]
[381895119,1756395038278,-500.0,0.00018215,2]
[381895120,1756395038288,-10000.01,0.000187,2]
[381895121,1756395038297,-420.0,0.00018725,2]
[381895122,1756395038306,-302.51602579,0.000189,2]
[381895123,1756395038317,-7023.30464255,0.00018993,2]
[381895124,1756395038326,-16687.97114796,0.00019063,2]
[381895125,1756395038339,-1340.6,0.00019068,3]
[381895126,1756395038348,-670.3,0.00019068,3]
[381895127,1756395038357,-335.15,0.00019068,3]
[381895128,1756395038367,-167.57,0.00019068,3]
[381895129,1756395038378,-502.74,0.00019068,3]
[381895130,1756395038387,-1320.71222359,0.00019073,2]
[381895131,1756395038396,-2035.7509069,0.00019073,2]
[381895132,1756395038406,-215448.95385596,0.00019078,2]
[381895133,1756395038417,-302.63698983,0.00019089,2]
[381895134,1756395038426,-500.0,0.00019173,2]
[381895135,1756395038438,-500.0,0.00019173,2]
[381895136,1756395038447,-400.02168337,0.00019173,2]
[381895137,1756395038456,-500.0,0.00019173,2]
[381895138,1756395038627,-500.0,0.00019173,2]
[381895139,1756395038637,-500.0,0.00019173,2]
[381895140,1756395038648,-460.70241166,0.00019173,2]
[381895141,1756395038659,-500.0,0.00019173,2]
[381895142,1756395038668,-502.07979579,0.00019173,2]
[381895143,1756395038678,-500.0,0.00019173,2]
[381895144,1756395038690,-500.0,0.00019173,2]
[381895145,1756395038699,-500.0,0.00019173,2]
[381895146,1756395038710,-504.97425521,0.00019173,2]
[381895147,1756395038719,-501.2037536,0.00019173,2]
[381895148,1756395038729,-500.0,0.00019173,2]
[381895149,1756395038739,-500.0,0.00019173,2]
[381895150,1756395038748,-500.0,0.00019173,2]
[381895151,1756395038758,-500.0,0.00019173,2]
[381895152,1756395038768,-500.0,0.00019173,2]
[381895153,1756395038777,-544.46331213,0.00019173,2]
[381895154,1756395038787,-500.0,0.00019173,2]
[381895155,1756395038797,-500.0,0.00019173,2]
[381895156,1756395038806,-500.0,0.00019173,2]
[381895157,1756395038816,-500.0,0.00019173,2]
[381895158,1756395038825,-500.0,0.00019173,2]
[381895159,1756395038835,-500.0,0.00019173,2]
[381895160,1756395038844,-500.0,0.00019173,2]
[381895161,1756395038854,-500.0,0.00019173,2]
[381895162,1756395038863,-500.0,0.00019173,2]
[381895163,1756395038872,-500.0,0.00019173,2]
[381895164,1756395038882,-500.0,0.00019173,2]
[381895165,1756395038891,-500.0,0.00019173,2]
[381895166,1756395038901,-500.0,0.00019173,2]
[381895167,1756395038910,-500.0,0.00019173,2]
[381895168,1756395038920,-500.0,0.00019173,2]
[381895169,1756395038930,-500.0,0.00019173,2]
[381895170,1756395038940,-500.0,0.00019173,2]
[381895171,1756395038950,-500.0,0.00019173,2]
[381895172,1756395038959,-500.0,0.00019173,2]
[381895173,1756395038969,-480.0,0.00019178,2]
[381895174,1756395038978,-480.0,0.00019178,2]
[381895175,1756395038988,-480.0,0.00019178,2]
[381895176,1756395038997,-480.0,0.00019178,2]
[381895177,1756395039007,-480.0,0.00019178,2]
[381895178,1756395039016,-480.0,0.00019178,2]
[381895179,1756395039026,-480.0,0.00019178,2]
[381895180,1756395039035,-480.0,0.00019178,2]
[381895181,1756395039045,-481.50039817,0.00019178,2]
[381895182,1756395039055,-480.0,0.00019178,2]
[381895183,1756395039065,-480.0,0.00019178,2]
[381895184,1756395039074,-480.0,0.00019178,2]
[381895185,1756395039085,-480.0,0.00019178,2]
[381895186,1756395039102,-480.0,0.00019178,2]
[381895187,1756395039113,-480.0,0.00019178,2]
[381895188,1756395039127,-480.0,0.00019178,2]
[381895189,1756395039137,-480.0,0.00019178,2]
[381895190,1756395039147,-480.0,0.00019178,2]
[381895191,1756395039156,-480.0,0.00019178,2]
[381895192,1756395039166,-480.0,0.00019178,2]
[381895193,1756395039176,-480.0,0.00019178,2]
[381895194,1756395039186,-480.0,0.00019178,2]
[381895195,1756395039196,-480.0,0.00019178,2]
[381895196,1756395039206,-480.0,0.00019178,2]
[381895197,1756395039215,-480.0,0.00019178,2]
[381895198,1756395039225,-480.0,0.00019178,2]
[381895199,1756395039234,-480.0,0.00019178,2]
[381895200,1756395039244,-480.0,0.00019178,2]
[381895201,1756395039253,-480.0,0.00019178,2]
[381895202,1756395039264,-480.0,0.00019178,2]
[381895203,1756395039274,-480.0,0.00019178,2]
[381895204,1756395039284,-480.0,0.00019178,2]
[381895205,1756395039294,-480.0,0.00019178,2]
[381895206,1756395039304,-480.0,0.00019178,2]
[381895207,1756395039313,-480.0,0.00019178,2]
[381895208,1756395039323,-480.0,0.00019178,2]
[381895209,1756395039335,-480.0,0.00019178,2]
[381895210,1756395039345,-480.0,0.00019178,2]
[381895211,1756395039354,-480.0,0.00019178,2]
[381895212,1756395039364,-480.0,0.00019178,2]
[381895214,1756395039373,-480.0,0.00019178,2]
[381895216,1756395039383,-480.0,0.00019178,2]
[381895218,1756395039392,-480.0,0.00019178,2]
[381895219,1756395039401,-480.0,0.00019178,2]
[381895220,1756395039411,-480.0,0.00019178,2]
[381895221,1756395039420,-480.0,0.00019178,2]
[381895222,1756395039430,-480.0,0.00019178,2]
[381895224,1756395039440,-480.0,0.00019178,2]
[381895225,1756395039450,-480.0,0.00019178,2]
[381895226,1756395039459,-480.0,0.00019178,2]
[381895227,1756395039469,-480.0,0.00019178,2]
[381895228,1756395039478,-480.0,0.00019178,2]
[381895229,1756395039488,-480.0,0.00019178,2]
[381895230,1756395039497,-481.18494462,0.00019178,2]
[381895231,1756395039506,-480.0,0.00019178,2]
[381895232,1756395039516,-480.0,0.00019178,2]
[381895233,1756395039526,-480.0,0.00019178,2]
[381895234,1756395039535,-480.0,0.00019178,2]
[381895235,1756395039544,-480.0,0.00019178,2]
[381895237,1756395039553,-480.0,0.00019178,2]
[381895238,1756395039563,-480.0,0.00019178,2]
[381895239,1756395039572,-480.0,0.00019178,2]
[381895241,1756395039582,-480.0,0.00019178,2]
[381895242,1756395039592,-480.0,0.00019178,2]
[381895243,1756395039602,-480.0,0.00019178,2]
[381895244,1756395039611,-480.0,0.00019178,2]
[381895246,1756395039621,-552.79837292,0.00019178,2]
[381895247,1756395039630,-480.0,0.00019178,2]
[381895248,1756395039640,-481.8316121,0.00019178,2]
[381895250,1756395039650,-265.34001834,0.00019178,2]
[381895252,1756395039660,-480.0,0.00019178,2]
[381895253,1756395039669,-480.0,0.00019178,2]
[381895255,1756395039679,-480.0,0.00019178,2]
[381895256,1756395039688,-480.0,0.00019178,2]
[381895257,1756395039697,-480.0,0.00019178,2]
[381895258,1756395039706,-480.0,0.00019178,2]
[381895259,1756395039716,-480.0,0.00019178,2]
[381895260,1756395039728,-480.0,0.00019178,2]
[381895261,1756395039737,-480.0,0.00019178,2]
[381895262,1756395039746,-359.53491124,0.00019178,2]
[381895263,1756395039755,-480.0,0.00019178,2]
[381895264,1756395039765,-746.34,0.00019178,2]
[381895265,1756395039775,-480.0,0.00019178,2]
[381895267,1756395039784,-480.0,0.00019178,2]
[381895269,1756395039793,-480.0,0.00019178,2]
[381895271,1756395039803,-480.0,0.00019178,2]
[381895272,1756395039812,-480.0,0.00019178,2]
[381895274,1756395039823,-480.0,0.00019178,2]
[381895276,1756395039833,-480.0,0.00019178,2]
[381895278,1756395039842,-480.0,0.00019178,2]
[381895279,1756395039851,-480.0,0.00019178,2]
[381895280,1756395039861,-480.0,0.00019178,2]
[381895281,1756395039870,-480.0,0.00019178,2]
[381895282,1756395039879,-600.43,0.00019178,2]
[381895283,1756395039889,-480.0,0.00019178,2]
[381895284,1756395039898,-480.0,0.00019178,2]
[381895285,1756395039907,-480.0,0.00019178,2]
[381895286,1756395039916,-480.0,0.00019178,2]
[381895287,1756395039925,-480.0,0.00019178,2]
[381895288,1756395039935,-480.0,0.00019178,2]
[381895289,1756395039944,-480.0,0.00019178,2]
[381895290,1756395039954,-480.0,0.00019178,2]
[381895291,1756395039964,-480.0,0.00019178,2]
[381895292,1756395039973,-152.44941628,0.00019178,2]
[381895293,1756395039983,-480.0,0.00019178,2]
[381895294,1756395039993,-458.45181433,0.00019178,2]
[381895295,1756395040002,-480.0,0.00019178,2]
[381895296,1756395040011,-480.0,0.00019178,2]
[381895297,1756395040020,-480.0,0.00019178,2]
[381895298,1756395040029,-480.0,0.00019178,2]
[381895299,1756395040039,-480.0,0.00019178,2]
[381895300,1756395040048,-480.0,0.00019178,2]
[381895301,1756395040058,-480.0,0.00019178,2]
[381895302,1756395040067,-480.0,0.00019178,2]
[381895303,1756395040077,-480.0,0.00019178,2]
[381895304,1756395040086,-480.0,0.00019178,2]
[381895305,1756395040096,-480.0,0.00019178,2]
[381895306,1756395040105,-480.0,0.00019178,2]
[381895307,1756395040115,-480.0,0.00019178,2]
[381895308,1756395040124,-480.0,0.00019178,2]
[381895309,1756395040134,-480.0,0.00019178,2]
[381895310,1756395040143,-480.0,0.00019178,2]
[381895311,1756395040153,-480.0,0.00019178,2]
[381895312,1756395040162,-480.0,0.00019178,2]
[381895313,1756395040171,-480.0,0.00019178,2]
[381895314,1756395040180,-480.0,0.00019178,2]
[381895315,1756395040194,-480.0,0.00019178,2]
[381895316,1756395040203,-480.0,0.00019178,2]
[381895317,1756395040213,-480.0,0.00019178,2]
[381895318,1756395040222,-480.0,0.00019178,2]
[381895319,1756395040232,-480.0,0.00019178,2]
[381895320,1756395040241,-480.0,0.00019178,2]
[381895321,1756395040250,-548.46,0.00019178,2]
[381895322,1756395040260,-480.0,0.00019178,2]
[381895323,1756395040269,-480.0,0.00019178,2]
[381895324,1756395040278,-480.0,0.00019178,2]
[381895325,1756395040287,-480.0,0.00019178,2]
[381895326,1756395040297,-480.0,0.00019178,2]
[381895327,1756395040306,-480.0,0.00019178,2]
[381895328,1756395040315,-480.0,0.00019178,2]
[381895329,1756395040325,-480.0,0.00019178,2]
[381895330,1756395040336,-480.0,0.00019178,2]
[381895331,1756395040346,-480.0,0.00019178,2]
[381895332,1756395040355,-480.0,0.00019178,2]
[381895333,1756395040364,-480.0,0.00019178,2]
[381895334,1756395040374,-480.0,0.00019178,2]
[381895335,1756395040383,-547.67581536,0.00019178,2]
[381895336,1756395040392,-480.0,0.00019178,2]
[381895337,1756395040402,-480.0,0.00019178,2]
[381895338,1756395040411,-480.0,0.00019178,2]
[381895339,1756395040421,-480.0,0.00019178,2]
[381895340,1756395040431,-480.0,0.00019178,2]
[381895341,1756395040442,-480.0,0.00019178,2]
[381895342,1756395040452,-480.0,0.00019178,2]
[381895343,1756395040461,-480.0,0.00019178,2]
[381895344,1756395040471,-480.0,0.00019178,2]
[381895345,1756395040481,-480.0,0.00019178,2]
[381895346,1756395040490,-480.0,0.00019178,2]
[381895347,1756395040500,-167.14806288,0.00019178,2]
[381895348,1756395040510,-480.0,0.00019178,2]
[381895349,1756395040519,-480.0,0.00019178,2]
[381895350,1756395040529,-480.0,0.00019178,2]
[381895351,1756395040539,-480.0,0.00019178,2]
[381895352,1756395040548,-480.0,0.00019178,2]
[381895353,1756395040558,-480.0,0.00019178,2]
[381895354,1756395040567,-480.0,0.00019178,2]
[381895355,1756395040576,-480.0,0.00019178,2]
[381895356,1756395040585,-480.0,0.00019178,2]
[381895357,1756395040595,-480.0,0.00019178,2]
[381895358,1756395040604,-480.0,0.00019178,2]
[381895359,1756395040613,-480.0,0.00019178,2]
[381895360,1756395040623,-480.0,0.00019178,2]
[381895361,1756395040632,-480.0,0.00019178,2]
[381895362,1756395040641,-480.0,0.00019178,2]
[381895363,1756395040650,-480.0,0.00019178,2]
[381895364,1756395040660,-480.0,0.00019178,2]